bitfinex-derivatives/quotes_SOLF0:USTF0_20240920
["timestamp","ask_amount","ask_price","bid_price","bid_amount"]
[1726821041416,15.93,150.74,150.65,15.93]
[1726821041611,15.93,150.74,150.65,19.2483]
[1726821042915,3.3177,150.69,150.65,19.2483]
[1726821045107,3.3178,150.68,150.65,19.2483]
[1726821045310,15.93,150.73,150.63,15.93]
[1726821045609,15.93,150.73,150.65,15.93]
[1726821046414,3.31650694,150.75,150.65,15.93]
[1726821046415,19.24650694,150.75,150.65,15.93]
[1726821046615,3.3177,150.69,150.65,19.2483]
[1726821046817,3.3177,150.69,150.65,20.4236]
[1726821047214,3.3178,150.68,150.65,17.1053]
[1726821047712,15.93,150.71,150.65,1.1753]
[1726821047915,3.3182,150.66,150.65,1.1753]
[1726821050216,15.93,150.7,150.65,1.1753]
[1726821050920,3.3182,150.66,150.65,1.1753]
[1726821052423,3.318,150.67,150.65,1.1753]
[1726821052721,15.93,150.7,150.65,1.1753]
[1726821053021,3.3182,150.66,150.65,1.1753]
[1726821056728,3.3197,150.6,150.55,15.93]
[1726821057126,15.93,150.64,150.55,19.2505]
[1726821057429,3.3197,150.6,150.55,15.93]
[1726821057624,15.93,150.64,150.55,19.2505]
[1726821057824,3.3197,150.6,150.55,19.2505]
[1726821058022,15.93,150.64,150.55,19.2505]
[1726821058228,15.93,150.62,150.52,3.3211]
[1726821058424,15.93,150.62,150.52,15.93]
[1726821058628,15.93,150.68,150.52,15.93]
[1726821058830,15.93,150.62,150.53,136.121]
[1726821059030,15.93,150.62,150.53,3.321]
[1726821059233,3.3204,150.56,150.52,19.2512]
[1726821059832,15.93,150.58,150.42,572.0]
[1726821060033,15.93,150.58,150.43,132.84]
[1726821060233,15.93,150.56,150.43,132.84]
[1726821060435,3.3211,150.53,150.48,3.3219]
[1726821061030,15.93,150.58,150.49,15.93]
[1726821061425,3.3212,150.53,150.49,15.93]
[1726821061734,19.22123818,150.58,150.43,132.84]
[1726821061929,3.322,150.49,150.45,15.93]
[1726821062132,15.93,150.54,150.45,15.93]
[1726821062536,15.93,150.54,150.46,3.3226]
[1726821062739,15.93,150.54,150.45,15.93]
[1726821063032,15.93,150.54,150.43,132.84]
[1726821063238,15.93,150.52,150.41,15.93]
[1726821063636,15.93,150.52,150.44,15.93]
[1726821064140,15.93,150.5,150.41,15.93]
[1726821064540,15.93,150.5,150.37,3.33122616]
[1726821064739,15.93,150.5,150.4,15.93]
[1726821065040,15.93,150.52,150.42,15.93]
[1726821065339,15.93,150.51,150.42,15.93]
[1726821066133,3.3226,150.46,150.42,15.93]
[1726821066439,15.93,150.51,150.42,15.93]
[1726821066739,19.32870833,150.51,150.42,19.2533]
[1726821066936,15.93,150.52,150.42,15.93]
[1726821067137,3.37809801,150.55,150.47,15.93]
[1726821067338,3.37809801,150.55,150.48,3.322]
[1726821067535,15.93,150.57,150.47,15.93]
[1726821067732,3.3213,150.52,150.47,19.2523]
[1726821068241,3.3231,150.44,150.35,704.88]
[1726821068445,15.93,150.52,150.42,15.93]
[1726821068945,3.3222,150.48,150.43,3.3231]
[1726821069148,15.93,150.52,150.42,15.93]
[1726821069446,15.93,150.54,150.44,15.93]
[1726821069646,15.93,150.54,150.44,19.253]
[1726821069847,15.93,150.52,150.35,132.88]
[1726821070145,15.93,150.52,150.42,15.93]
[1726821070346,19.28183551,150.52,150.42,15.93]
[1726821070748,15.93,150.54,150.44,15.93]
[1726821070949,15.93,150.54,150.46,15.93]
[1726821071151,3.3217,150.5,150.46,15.93]
[1726821071449,15.93,150.54,150.44,15.93]
[1726821072244,3.3221,150.49,150.44,15.93]
[1726821073445,17.2848,150.54,150.42,15.93]
[1726821073446,3.3222,150.48,150.42,15.93]
[1726821073649,15.93,150.52,150.37,3.32102992]
[1726821073850,15.93,150.52,150.42,15.93]
[1726821074157,15.93,150.5,150.4,15.93]
[1726821074354,1.3548,150.49,150.4,15.93]
[1726821074655,3.323,150.45,150.4,19.2537]
[1726821075356,1.3548,150.49,150.4,15.93]
[1726821075556,1.3548,150.49,150.42,15.93]
[1726821075744,17.311,150.54,150.44,15.93]
[1726821075949,3.3223,150.48,150.44,15.93]
[1726821076354,3.3223,150.48,150.44,19.253]
[1726821076545,17.311,150.54,150.44,15.93]
[1726821076546,20.58615619,150.54,150.44,15.93]
[1726821076746,15.93,150.52,150.37,3.3433055]
[1726821076952,15.93,150.52,150.43,15.93]
[1726821077148,3.3223,150.48,150.43,19.253]
[1726821077350,15.93,150.52,150.43,15.93]
[1726821077657,20.58615619,150.54,150.45,19.2528]
[1726821077846,20.58615619,150.54,150.45,15.93]
[1726821078252,15.93,150.52,150.43,15.93]
[1726821078454,15.93,150.49,150.4,15.93]
[1726821078754,15.93,150.51,150.4,15.93]
[1726821079148,15.93,150.49,150.4,15.93]
[1726821079546,3.3232,150.44,150.4,15.93]
[1726821079751,1.3682,150.48,150.37,15.93]
[1726821079752,15.93,150.47,150.37,15.93]
[1726821080159,15.93,150.47,150.37,19.2545]
[1726821080354,15.93,150.47,150.36,132.96]
[1726821080555,15.93,150.47,150.36,148.89]
[1726821080758,3.3236,150.42,150.37,3.3244]
[1726821080955,15.93,150.47,150.38,15.93]
[1726821081360,15.93,150.47,150.39,3.324]
[1726821081756,15.93,150.47,150.38,15.93]
[1726821082058,3.3233,150.43,150.39,3.3241]
[1726821082253,15.93,150.47,150.28,113.41753551]
[1726821082558,3.3238,150.41,150.37,3.3244]
[1726821082758,1.3682,150.48,150.36,15.93]
[1726821082759,15.93,150.47,150.36,15.93]
[1726821083059,3.3235,150.42,150.38,3.3242]
[1726821083753,3.36403998,150.46,150.36,15.93]
[1726821083959,15.93,150.47,150.36,15.93]
[1726821084156,17.2702,150.45,150.36,15.93]
[1726821084462,3.25162816,150.44,150.34,19.1815119]
[1726821084653,17.2702,150.45,150.34,19.1815119]
[1726821084654,3.3243,150.39,150.35,3.325]
[1726821084856,17.2702,150.45,150.34,15.93]
[1726821085063,1.3704,150.44,150.33,3.37468252]
[1726821085362,1.3704,150.44,150.36,19.2547]
[1726821085564,1.3704,150.44,150.36,3.3247]
[1726821085765,1.3704,150.44,150.35,15.93]
[1726821085963,3.3242,150.39,150.35,19.255]
[1726821086458,3.324,150.4,150.35,19.255]
[1726821086664,1.3704,150.44,150.36,15.93]
[1726821086963,17.2702,150.45,150.4,15.93]
[1726821086964,1.3402,150.45,150.4,15.93]
[1726821087159,1.3682,150.48,150.42,15.93]
[1726821087561,2.712,150.52,150.44,15.93]
[1726821088464,3.3221,150.49,150.44,19.253]
[1726821088664,2.712,150.52,150.44,15.93]
[1726821089162,3.39120452,150.58,150.48,15.93]
[1726821089362,2.37895407,150.57,150.48,15.93]
[1726821089559,1.3424,150.57,150.48,15.93]
[1726821089959,15.93,150.56,150.48,15.93]
[1726821090163,3.3217,150.5,150.46,15.93]
[1726821090359,15.93,150.56,150.46,15.93]
[1726821090761,3.3214,150.52,150.46,19.2524]
[1726821090967,15.93,150.56,150.46,19.2524]
[1726821091468,3.3216,150.51,150.46,19.2524]
[1726821091665,15.93,150.56,150.47,3.3223]
[1726821091970,15.93,150.56,150.45,3.37620801]
[1726821091971,1.3424,150.57,150.48,15.93]
[1726821092269,1.3424,150.57,150.49,3.3219]
[1726821092569,3.321,150.54,150.49,3.3219]
[1726821092763,1.3424,150.57,150.49,3.3219]
[1726821093363,1.3424,150.57,150.48,15.93]
[1726821093670,3.3209,150.54,150.48,15.93]
[1726821093873,3.3209,150.54,150.49,3.3218]
[1726821094063,1.3424,150.57,150.48,15.93]
[1726821094268,15.93,150.55,150.41,133.0]
[1726821094573,15.93,150.52,150.46,3.3225]
[1726821094767,3.3217,150.51,150.46,3.3225]
[1726821095465,3.3217,150.5,150.46,3.3225]
[1726821096164,3.3217,150.5,150.45,3.3228]
[1726821096569,15.93,150.52,150.43,15.93]
[1726821097565,15.93,150.54,150.43,15.93]
[1726821097784,3.3219,150.5,150.43,15.93]
[1726821097962,3.3219,150.5,150.45,3.3227]
[1726821098367,3.3219,150.5,150.45,3.3226]
[1726821098574,3.3219,150.5,150.43,25.51]
[1726821099072,28.8549631,150.56,150.43,25.51]
[1726821099267,25.51,150.56,150.43,25.51]
[1726821099969,4.73291137,150.57,150.43,25.51]
[1726821100569,4.73291137,150.57,150.41,136.2575587]
[1726821100868,25.51,150.7,150.56,25.51]
[1726821101099,2.6693,150.65,150.56,25.51]
[1726821101771,3.3191,150.62,150.57,3.32]
[1726821102674,3.3193,150.61,150.57,3.32]
[1726821102877,2.6693,150.65,150.56,25.51]
[1726821103675,3.3197,150.6,150.56,25.51]
[1726821104172,2.6693,150.65,150.56,25.51]
[1726821104768,3.3192,150.62,150.57,3.3201]
[1726821105169,2.6693,150.65,150.57,3.3201]
[1726821105373,3.3194,150.61,150.54,3.39947387]
[1726821105569,2.6693,150.65,150.55,25.51]
[1726821107179,3.3195,150.6,150.56,3.3203]
[1726821110686,3.3198,150.59,150.55,28.8306]
[1726821111390,2.6693,150.65,150.55,28.8306]
[1726821111690,1.03595459,150.64,150.55,28.8306]
[1726821112789,3.3199,150.59,150.55,28.8306]
[1726821112989,2.6693,150.65,150.55,28.8306]
[1726821113289,1.03599487,150.64,150.55,28.8306]
[1726821113486,3.3199,150.59,150.55,28.8306]
[1726821113785,2.6693,150.65,150.57,25.51]
[1726821113983,3.3191,150.62,150.57,25.51]
[1726821114587,3.3191,150.62,150.58,3.3199]
[1726821115291,3.3191,150.62,150.59,25.51]
[1726821117889,3.3191,150.62,150.6,15.94]
[1726821119087,2.6693,150.65,150.6,15.94]
[1726821119286,15.94,150.71,150.63,15.94]
[1726821119488,5.56510231,150.7,150.63,15.94]
[1726821119689,1.03565166,150.69,150.63,15.94]
[1726821120395,3.2745542,150.79,150.68,19.2577]
[1726821120692,3.3166,150.73,150.68,15.94]
[1726821120892,2.6289,150.77,150.68,15.94]
[1726821121491,1.02711081,150.76,150.68,15.94]
[1726821121883,3.3168,150.73,150.68,28.8175]
[1726821122088,2.6289,150.77,150.68,25.5]
[1726821122389,1.02711166,150.76,150.68,25.5]
[1726821123084,4.34321166,150.76,150.71,25.5]
[1726821123291,1.02711166,150.75,150.71,25.5]
[1726821123789,4.34341166,150.75,150.71,25.5]
[1726821123991,1.02711166,150.74,150.71,25.5]
[1726821125192,1.02709297,150.73,150.63,136.18410854]
[1726821125396,1.02709297,150.76,150.64,25.5]
[1726821125689,3.3173,150.71,150.64,28.83299999]
[1726821125996,2.6289,150.77,150.66,25.5]
[1726821126195,1.02723814,150.76,150.69,25.5]
[1726821126791,3.3166,150.74,150.69,28.8175]
[1726821127485,3.3162,150.75,150.7,3.3173]
[1726821127690,2.6289,150.77,150.71,25.5]
[1726821127991,1.0270637,150.76,150.71,25.5]
[1726821128191,1.0270637,150.75,150.72,3.3168]
[1726821128986,1.0270637,150.75,150.71,28.817]
[1726821129191,3.316,150.76,150.71,28.817]
[1726821129392,1.02706134,150.75,150.71,28.817]
[1726821129590,3.3162,150.75,150.71,28.817]
[1726821130495,3.3162,150.75,150.71,25.5]
[1726821131894,3.3165,150.74,150.71,25.5]
[1726821133300,3.39164061,150.81,150.71,25.5]
[1726821133501,1.02695957,150.8,150.71,25.5]
[1726821133701,1.02695957,150.79,150.71,25.5]
[1726821134304,3.316,150.76,150.74,25.5]
[1726821134605,3.9402,150.82,150.74,25.5]
[1726821134806,3.3158,150.77,150.74,25.5]
[1726821136104,3.9402,150.82,150.74,25.5]
[1726821136306,1.02671536,150.81,150.74,25.5]
[1726821136603,3.3156,150.78,150.74,28.8164]
[1726821137507,3.3158,150.77,150.74,25.5]
[1726821137715,3.9402,150.82,150.69,1.1753]
[1726821137901,1.0266978,150.81,150.71,25.5]
[1726821138837,1.0266978,150.81,150.71,28.817]
[1726821139010,1.0266978,150.81,150.71,25.5]
[1726821139206,3.3164,150.75,150.71,25.5]
[1726821139707,3.3164,150.75,150.71,28.817]
[1726821140812,3.9402,150.82,150.72,3.27305156]
[1726821141107,1.02681182,150.81,150.72,3.27305156]
[1726821141300,3.316,150.76,150.72,6.58975156]
[1726821141701,3.9402,150.82,150.73,25.5]
[1726821141904,3.3157,150.78,150.76,15.92]
[1726821142306,3.9402,150.82,150.76,15.92]
[1726821142715,3.3155,150.79,150.76,15.92]
[1726821142907,3.9402,150.82,150.76,15.92]
[1726821143307,3.9402,150.82,150.78,15.92]
[1726821143815,3.3156,150.78,150.76,15.92]
[1726821146015,3.3154,150.79,150.76,15.92]
[1726821146313,3.9402,150.82,150.76,15.92]
[1726821146513,3.3155,150.79,150.76,15.92]
[1726821146716,3.9402,150.82,150.76,15.92]
[1726821146906,1.02665021,150.81,150.74,15.92]
[1726821147105,3.3159,150.77,150.74,15.92]
[1726821147912,3.316,150.76,150.74,15.92]
[1726821148416,3.9402,150.82,150.74,15.92]
[1726821148617,3.3161,150.76,150.74,15.92]
[1726821150817,3.9402,150.82,150.74,15.92]
[1726821150818,3.3158,150.77,150.74,15.92]
[1726821151518,3.3156,150.78,150.74,15.92]
[1726821151727,3.9402,150.82,150.76,15.92]
[1726821151909,1.02668782,150.81,150.76,15.92]
[1726821152715,3.9402,150.82,150.78,15.92]
[1726821152918,3.3154,150.79,150.78,15.92]
[1726821154520,3.3152,150.8,150.78,15.92]
[1726821156417,3.23733219,150.85,150.78,15.92]
[1726821156625,3.3149,150.81,150.78,15.92]
[1726821157419,3.3151,150.8,150.78,15.92]
[1726821158120,6.02451598,150.86,150.78,15.92]
[1726821158325,3.315,150.81,150.78,15.92]
[1726821158718,2.7091,150.86,150.8,15.92]
[1726821158919,1.02646653,150.85,150.8,15.92]
[1726821159228,22.5445,150.94,150.84,15.92]
[1726821159524,4.93001015,150.93,150.86,15.92]
[1726821159718,1.02621015,150.92,150.86,15.92]
[1726821159918,3.3135,150.88,150.86,15.92]
[1726821160622,3.3135,150.88,150.83,3.3143]
[1726821160623,15.92,150.92,150.8,3.35754637]
[1726821160827,7.23779512,150.93,150.81,15.92]
[1726821160828,15.92,150.9,150.81,15.92]
[1726821161127,1.02592811,150.89,150.79,15.92]
[1726821161422,15.92,150.9,150.79,15.92]
[1726821161624,1.0261116,150.89,150.79,15.92]
[1726821162920,3.3146,150.83,150.78,3.3155]
[1726821163125,15.92,150.9,150.81,15.92]
[1726821163323,1.02616207,150.89,150.81,15.92]
[1726821163521,1.02616207,150.89,150.78,3.3155]
[1726821163726,15.92,150.86,150.74,132.7]
[1726821163920,7.22225795,150.85,150.77,15.92]
[1726821164120,3.3152,150.8,150.77,15.92]
[1726821166319,7.22225795,150.85,150.74,132.7]
[1726821166623,1.02645754,150.84,150.76,15.92]
[1726821167217,1.02645754,150.84,150.74,132.7]
[1726821167218,1.02645754,150.84,150.78,15.92]
[1726821167722,3.3149,150.81,150.78,15.92]
[1726821167922,7.22225795,150.85,150.78,15.92]
[1726821168123,1.02638652,150.84,150.78,15.92]
[1726821169025,16.94638652,150.84,150.75,15.92]
[1726821169219,1.02638652,150.83,150.75,15.92]
[1726821169426,1.02655251,150.82,150.75,15.92]
[1726821169625,3.3156,150.78,150.75,15.92]
[1726821171829,3.3153,150.79,150.75,15.92]
[1726821172127,15.92,150.84,150.75,15.92]
[1726821172322,3.3157,150.78,150.75,15.92]
[1726821172728,15.92,150.84,150.75,15.92]
[1726821172928,3.3157,150.78,150.75,15.92]
[1726821173124,15.92,150.84,150.75,15.92]
[1726821173322,15.92,150.82,150.73,15.92]
[1726821173528,3.3162,150.76,150.73,15.92]
[1726821174031,15.92,150.82,150.73,15.92]
[1726821174227,1.02667859,150.81,150.73,15.92]
[1726821174425,15.92,150.79,150.69,15.92]
[1726821174621,15.92,150.76,150.67,15.92]
[1726821174825,5.053325,150.78,150.66,148.62]
[1726821174826,15.92,150.74,150.66,148.62]
[1726821175031,15.92,150.74,150.66,15.92]
[1726821175228,1.02713638,150.73,150.66,15.92]
[1726821175430,3.318,150.67,150.66,15.92]
[1726821175731,3.318,150.67,150.64,15.92]
[1726821175933,15.92,150.73,150.64,15.92]
[1726821175934,1.3402,150.72,150.64,15.92]
[1726821176122,1.02739072,150.71,150.64,15.92]
[1726821176431,3.67889072,150.71,150.64,15.92]
[1726821176630,1.02739072,150.7,150.64,15.92]
[1726821177532,3.3181,150.67,150.64,15.92]
[1726821177935,2.6515,150.71,150.64,15.92]
[1726821178127,1.02735374,150.7,150.64,15.92]
[1726821178433,1.02735374,150.7,150.62,15.92]
[1726821178932,4.32714991,150.7,150.62,15.92]
[1726821179127,16.94735374,150.69,150.57,132.7]
[1726821179333,1.02752911,150.68,150.6,15.92]
[1726821179835,3.3185,150.65,150.62,15.92]
[1726821180534,3.3188,150.64,150.62,15.92]
[1726821180936,15.92,150.69,150.6,15.92]
[1726821181131,1.02753069,150.68,150.6,15.92]
[1726821181735,4.32720733,150.68,150.6,15.92]
[1726821181936,3.3188,150.64,150.6,15.92]
[1726821182529,3.3182,150.66,150.62,15.92]
[1726821182735,2.6515,150.71,150.63,15.92]
[1726821183133,3.33953182,150.7,150.63,15.92]
[1726821184842,2.6515,150.71,150.63,15.92]
[1726821185039,1.02748324,150.7,150.63,15.92]
[1726821185232,3.318,150.67,150.63,15.92]
[1726821185834,3.24091651,150.7,150.63,15.92]
[1726821186437,3.3184,150.66,150.63,15.92]
[1726821187240,3.3177,150.69,150.64,3.3185]
[1726821187435,2.6515,150.71,150.63,15.92]
[1726821187837,2.6515,150.71,150.65,15.92]
[1726821188639,3.3178,150.68,150.65,15.92]
[1726821189643,2.6515,150.71,150.65,15.92]
[1726821190041,3.3174,150.7,150.65,19.2382]
[1726821190535,1.347,150.71,150.65,19.2382]
[1726821191235,3.3175,150.69,150.65,15.92]
[1726821191638,1.347,150.71,150.65,15.92]
[1726821192242,3.3176,150.69,150.65,15.92]
[1726821192542,1.347,150.71,150.65,15.92]
[1726821192843,3.3181,150.67,150.63,15.92]
[1726821193446,3.27434831,150.7,150.58,132.8]
[1726821193640,4.60374831,150.7,150.61,15.92]
[1726821193941,18.5647,150.7,150.61,15.92]
[1726821194450,3.37550936,150.69,150.59,19.2396]
[1726821194635,3.3188,150.64,150.6,3.3195]
[1726821195038,3.37550936,150.69,150.6,3.3195]
[1726821195339,3.3185,150.65,150.61,15.92]
[1726821195545,3.37550936,150.69,150.61,15.92]
[1726821196240,3.3188,150.64,150.61,15.92]
[1726821196437,3.40174561,150.68,150.58,132.8]
[1726821196748,15.92,150.66,150.58,132.8]
[1726821196941,1.3378,150.65,150.57,15.92]
[1726821197544,1.3378,150.65,150.55,3.3205]
[1726821197545,1.3378,150.65,150.55,19.2405]
[1726821197741,1.3899,150.64,150.55,19.2405]
[1726821197941,3.3197,150.6,150.55,19.2405]
[1726821198141,3.3197,150.6,150.56,3.3204]
[1726821198644,3.3193,150.61,150.56,3.3204]
[1726821198844,1.3899,150.64,150.56,3.3204]
[1726821199044,1.3899,150.64,150.57,15.92]
[1726821199247,3.3192,150.62,150.57,15.92]
[1726821199435,3.3192,150.62,150.59,15.92]
[1726821202345,3.3193,150.61,150.59,15.92]
[1726821202644,1.3378,150.65,150.59,15.92]
[1726821202844,1.3378,150.65,150.57,15.92]
[1726821203348,3.3197,150.6,150.57,15.92]
[1726821204948,3.3198,150.59,150.55,19.2406]
[1726821205251,15.92,150.64,150.55,15.92]
[1726821205552,3.3201,150.58,150.55,15.92]
[1726821207644,3.3197,150.6,150.57,15.92]
[1726821209152,3.3195,150.61,150.57,15.92]
[1726821209756,3.3195,150.61,150.57,19.24]
[1726821210058,3.3195,150.6,150.57,19.24]
[1726821210658,1.3378,150.65,150.57,15.92]
[1726821211957,3.3196,150.6,150.57,15.92]
[1726821212157,15.92,150.64,150.55,15.92]
[1726821212360,15.92,150.62,150.53,15.92]
[1726821212558,3.3203,150.57,150.53,15.92]
[1726821213858,3.3203,150.57,150.53,19.241]
[1726821214163,15.92,150.6,150.51,15.92]
[1726821214562,15.92,150.6,150.5,132.86]
[1726821214763,15.92,150.58,150.5,148.78]
[1726821214966,3.321,150.54,150.5,148.78]
[1726821215360,15.92,150.58,150.5,148.78]
[1726821215569,3.34850275,150.57,150.5,148.78]
[1726821215867,3.34850275,150.57,150.5,15.92]
[1726821216265,15.92,150.56,150.48,15.92]
[1726821217263,15.92,150.54,150.42,132.88]
[1726821217464,15.92,150.54,150.44,15.92]
[1726821217765,15.92,150.54,150.45,3.25656169]
[1726821218561,3.3219,150.5,150.44,19.2428]
[1726821219062,3.3219,150.5,150.45,3.3227]
[1726821219262,17.2696,150.53,150.44,15.92]
[1726821219460,18.6021,150.53,150.44,15.92]
[1726821219663,3.3221,150.49,150.44,19.2429]
[1726821220368,3.3222,150.48,150.44,19.2429]
[1726821220666,2.6821,150.53,150.44,15.92]
[1726821220968,3.3219,150.5,150.45,3.3227]
[1726821221171,2.6821,150.53,150.45,3.3227]
[1726821221368,2.6821,150.53,150.44,15.92]
[1726821221564,2.6821,150.53,150.44,19.243]
[1726821221765,15.92,150.52,150.44,15.92]
[1726821221965,15.92,150.5,150.41,15.92]
[1726821222368,1.339,150.52,150.39,15.92]
[1726821222369,15.92,150.48,150.39,15.92]
[1726821222566,1.3852,150.47,150.39,15.92]
[1726821223164,2.6889,150.47,150.39,15.92]
[1726821223370,3.3234,150.43,150.39,15.92]
[1726821224971,3.3235,150.42,150.39,15.92]
[1726821226276,3.3233,150.43,150.39,15.92]
[1726821226675,3.3238,150.41,150.39,15.92]
[1726821227473,3.3239,150.4,150.37,15.92]
[1726821227872,3.3238,150.41,150.37,19.2444]
[1726821228571,3.3235,150.42,150.38,3.3243]
[1726821228777,17.2371,150.46,150.38,3.3243]
[1726821229166,17.2371,150.46,150.39,3.3241]
[1726821229473,17.2371,150.46,150.39,19.2441]
[1726821229676,17.2371,150.46,150.39,15.92]
[1726821229876,3.3231,150.44,150.4,3.3239]
[1726821230077,17.2371,150.46,150.36,110.14964028]
[1726821230279,3.3233,150.43,150.38,3.3242]
[1726821230978,3.3235,150.42,150.38,3.3242]
[1726821233081,3.3237,150.41,150.37,19.2445]
[1726821233280,3.3237,150.41,150.37,15.92]
[1726821234084,3.3235,150.43,150.37,15.92]
[1726821234381,17.2371,150.46,150.37,15.92]
[1726821234779,3.3237,150.41,150.38,3.3243]
[1726821238176,3.3239,150.4,150.37,19.2445]
[1726821238381,17.2371,150.46,150.37,15.92]
[1726821238885,3.3238,150.41,150.38,3.3243]
[1726821241986,17.2371,150.46,150.37,15.92]
[1726821242583,3.3236,150.42,150.39,3.3241]
[1726821243083,3.3237,150.41,150.39,3.3241]
[1726821243285,17.2371,150.46,150.39,3.3241]
[1726821243484,3.3236,150.42,150.39,3.3241]
[1726821243785,17.2371,150.46,150.38,3.3243]
[1726821243981,10.22,150.44,150.4,10.22]
[1726821244182,10.22,150.44,150.38,3.3243]
[1726821244386,10.22,150.44,150.39,10.22]
[1726821244585,10.22,150.43,150.39,10.22]
[1726821244887,3.3238,150.41,150.39,10.22]
[1726821246081,3.3239,150.4,150.36,110.14964028]
[1726821246383,3.3239,150.4,150.39,10.22]
[1726821246781,10.22,150.41,150.37,10.22]
[1726821247980,10.22,150.39,150.28,362.04]
[1726821248381,10.22,150.39,150.34,10.22]
[1726821248583,3.325,150.36,150.34,10.22]
[1726821249284,3.325,150.35,150.31,3.3258]
[1726821249483,10.22,150.37,150.32,10.22]
[1726821249683,2.5687,150.39,150.33,10.22]
[1726821249883,3.3249,150.36,150.34,10.22]
[1726821250482,3.3249,150.36,150.33,10.22]
[1726821250688,3.3251,150.35,150.33,10.22]
[1726821250987,10.22,150.37,150.28,136.42279196]
[1726821251287,10.22,150.37,150.32,10.22]
[1726821251989,18.5487,150.39,150.3,15.98]
[1726821252185,3.3253,150.34,150.31,3.3258]
[1726821252389,3.3253,150.34,150.3,15.98]
[1726821252692,3.3253,150.34,150.3,19.3059]
[1726821253190,3.3251,150.35,150.3,15.98]
[1726821253387,18.5487,150.39,150.3,15.98]
[1726821253885,3.3252,150.35,150.31,3.3258]
[1726821254090,18.5487,150.39,150.31,3.3258]
[1726821254289,18.5487,150.39,150.3,15.98]
[1726821254491,18.5487,150.39,150.32,3.3255]
[1726821254992,3.3252,150.35,150.32,3.3255]
[1726821255189,18.5487,150.39,150.31,3.3257]
[1726821255386,18.5487,150.39,150.29,3.26435431]
[1726821255591,18.5487,150.39,150.29,15.98]
[1726821256416,18.5487,150.39,150.31,3.3259]
[1726821256586,18.5487,150.39,150.29,19.3630171]
[1726821257093,2.5687,150.39,150.31,15.98]
[1726821258093,3.3247,150.37,150.33,3.3255]
[1726821258391,2.5687,150.39,150.33,3.3255]
[1726821259587,2.5687,150.39,150.3,3.2544741]
[1726821259787,18.5487,150.39,150.31,15.98]
[1726821259988,3.3245,150.38,150.33,15.98]
[1726821260188,1.2839,150.39,150.35,3.3249]
[1726821260391,1.2807,150.4,150.35,3.3249]
[1726821260591,3.3246,150.37,150.33,19.3880764]
[1726821260793,3.3246,150.37,150.33,15.98]
[1726821261195,1.2807,150.4,150.35,3.325]
[1726821262100,3.3248,150.37,150.33,19.3053]
[1726821262606,3.3249,150.36,150.33,15.98]
[1726821263403,3.3249,150.36,150.33,19.3054]